[Event "FRA-ch Universities 2019"]
[Site "Paris"]
[Date "2019.02.02"]
[Round "1.1"]
[White "Porsia, Enzo"]
[Black "Sochacki, Christophe"]
[Result "0-1"]
[ECO "C01"]
[WhiteElo "1752"]
[BlackElo "2482"]
[Annotator "RC"]
[PlyCount "48"]
[EventDate "2019.02.01"]
[EventType "swiss"]
[EventCountry "FRA"]
[SourceTitle "playchess.com"]
[Source "ChessBase"]
[SourceQuality "1"]
[TimeControl "900+5"]

1. e4 {[%emt 0:00:00]} e6 {[%emt 0:00:00]} 2. d4 {[%emt 0:00:01]} d5 {[%emt 0:00:00]} 3. exd5 {[%emt 0:00:02]} exd5 {[%emt 0:00:05]} 4. Nf3 {[%emt 0:00:04]} Bd6 {[%emt 0:00:02]} 5. Bd3 {[%emt 0:00:04]} Nc6 {[%emt 0:00:12]} 6. c3 {[%emt 0:00:02]} Nge7 {[%emt 0:00:02]} 7. O-O {[%emt 0:00:26]} Bg4 {[%emt 0:00:06]} 8. Bg5 {[%emt 0:00:35]} Qd7 {[%emt 0:00:35]} 9. Nbd2 {[%emt 0:01:24]} f6 {[%emt 0:01:37]} 10. Bh4 {[%emt 0:00:53]} h5 {[%emt 0:00:23]} 11. Re1 {[%emt 0:04:02]} O-O-O {[%emt 0:00:10]} 12. b4 {[%emt 0:00:22]} Nf5 {[%emt 0:00:32]} 13. Qc2 {[%emt 0:01:09]} g5 {[%emt 0:01:12]} 14. Bg3 {[%emt 0:00:41]} Nxg3 {[%emt 0:00:52]} 15. fxg3 {[%emt 0:00:20]} Kb8 {[%emt 0:00:01]} 16. a4 {[%emt 0:02:10]} h4 {[%emt 0:00:05]} 17. gxh4 {[%emt 0:00:19]} gxh4 {[%emt 0:01:04]} 18. a5 {[%emt 0:00:41]} Rdg8 {[%emt 0:00:54]} 19. b5 {[%emt 0:00:09]} Ne7 {[%emt 0:00:07]} 20. b6 {[%emt 0:00:46]} h3 {[%emt 0:03:24]} 21. a6 {[%emt 0:00:20]} cxb6 {[%emt 0:00:23]} 22. axb7 {[%emt 0:00:23]} Bxf3 {[%emt 0:00:56]} 23. Nxf3 {[%emt 0:00:03]} Rxg2+ {[%emt 0:00:03]} 24. Qxg2 {[%emt 0:00:19]} hxg2 {[%emt 0:00:02]} 0-1

[Event "FRA-ch Universities 2019"]
[Site "Paris"]
[Date "2019.02.02"]
[Round "1.2"]
[White "Graca, Robert"]
[Black "Moretti, Marcos Paulo Pereir"]
[Result "1-0"]
[ECO "A13"]
[WhiteElo "2270"]
[BlackElo "1812"]
[Annotator "RC"]
[PlyCount "59"]
[EventDate "2019.02.01"]
[EventType "swiss"]
[EventCountry "FRA"]
[SourceTitle "playchess.com"]
[Source "ChessBase"]
[SourceQuality "1"]
[TimeControl "900+5"]

1. Nf3 {[%emt 0:00:00]} e6 {[%emt 0:00:00]} 2. c4 {[%emt 0:00:05]} d5 {[%emt 0:00:00]} 3. d4 {[%emt 0:00:01]} f5 {[%emt 0:00:06]} 4. e3 {[%emt 0:00:16]} c6 {[%emt 0:00:05]} 5. g4 {[%emt 0:00:23]} Nf6 {[%emt 0:00:28]} 6. Ne5 {[%emt 0:00:15]} Nbd7 {[%emt 0:01:25]} 7. g5 {[%emt 0:00:57]} Nxe5 {[%emt 0:00:20]} 8. gxf6 {[%emt 0:00:15]} Ng4 {[%emt 0:01:05]} 9. fxg7 {[%emt 0:00:44]} Bxg7 {[%emt 0:00:03]} 10. Nc3 {[%emt 0:00:54]} Bd7 {[%emt 0:01:01]} 11. Bd2 {[%emt 0:01:15]} Qh4 {[%emt 0:01:34]} 12. Qf3 {[%emt 0:00:12]} O-O {[%emt 0:00:29]} 13. Qg3 {[%emt 0:00:23]} Qh5 {[%emt 0:00:58]} 14. Be2 {[%emt 0:02:28]} Qf7 {[%emt 0:01:20]} 15. O-O-O {[%emt 0:01:38]} Kh8 {[%emt 0:01:03]} 16. Rhg1 {[%emt 0:00:51]} Nf6 {[%emt 0:00:52]} 17. Qh4 {[%emt 0:01:03]} Ne4 {[%emt 0:00:51]} 18. f3 {[%emt 0:00:46]} Nxd2 {[%emt 0:00:56]} 19. Rxd2 {[%emt 0:00:01]} f4 {[%emt 0:01:09]} 20. e4 {[%emt 0:00:14]} c5 {[%emt 0:00:52]} 21. dxc5 {[%emt 0:00:40]} Bxc3 {[%emt 0:00:09]} 22. bxc3 {[%emt 0:00:01]} dxe4 {[%emt 0:00:11]} 23. fxe4 {[%emt 0:00:27]} Bc6 {[%emt 0:00:18]} 24. Bf3 {[%emt 0:00:18]} Rg8 {[%emt 0:00:16]} 25. Rxg8+ {[%emt 0:00:34]} Rxg8 {[%emt 0:00:03]} 26. Rd8 {[%emt 0:00:35]} Rxd8 {[%emt 0:01:00]} 27. Qxd8+ {[%emt 0:00:01]} Kg7 {[%emt 0:00:02]} 28. Qg5+ {[%emt 0:00:11]} Kf8 {[%emt 0:00:05]} 29. Kb2 {[%emt 0:00:07]} Ke8 {[%emt 0:00:13]} 30. Bh5 {[%emt 0:00:01]} 1-0

[Event "FRA-ch Universities 2019"]
[Site "Paris"]
[Date "2019.02.02"]
[Round "1.3"]
[White "Ranguin, Anna"]
[Black "Sochacki, Wojtek"]
[Result "0-1"]
[ECO "A56"]
[WhiteElo "1565"]
[BlackElo "2348"]
[Annotator "NA RC"]
[PlyCount "38"]
[EventDate "2019.02.01"]
[EventType "swiss"]
[EventCountry "FRA"]
[SourceTitle "playchess.com"]
[Source "ChessBase"]
[SourceQuality "1"]
[TimeControl "900+5"]

1. d4 {[%emt 0:00:00]} Nf6 {[%emt 0:00:00]} 2. c4 {[%emt 0:00:00]} c5 {[%emt 0:00:02]} 3. Nf3 {[%emt 0:00:13]} cxd4 {[%emt 0:00:05]} 4. Nxd4 {[%emt 0:00:09]} e5 {[%emt 0:00:03]} 5. Nb5 {[%emt 0:00:09]} d5 {[%emt 0:00:02]} 6. cxd5 {[%emt 0:00:19]} Bc5 {[%emt 0:00:04]} 7. Bg5 {[%emt 0:00:25]} Ne4 {[%emt 0:01:13]} 8. Be3 {[%emt 0:01:37]} Bxe3 {[%emt 0:00:20]} 9. fxe3 {[%emt 0:00:36]} O-O {[%emt 0:00:06]} 10. g3 {[%emt 0:01:19]} Qb6 {[%emt 0:00:19]} 11. Qd3 {[%emt 0:01:33]} Bf5 {[%emt 0:00:00]} 12. Qb3 {[%emt 0:01:41]} Nc5 {[%emt 0:00:35]} 13. Qc4 {[%emt 0:01:09]} Rc8 {[%emt 0:00:07]} 14. N1c3 {[%emt 0:02:58]} Nd3+ {[%emt 0:00:27]} 15. exd3 {[%emt 0:00:05]} Rxc4 {[%emt 0:00:02]} 16. dxc4 {[%emt 0:00:02]} a6 {[%emt 0:00:02]} 17. e4 {[%emt 0:00:32]} Bg4 {[%emt 0:00:13]} 18. Bd3 {[%emt 0:02:02]} axb5 {[%emt 0:00:04]} 19. Nxb5 {[%emt 0:00:04]} Qe3+ {[%emt 0:00:02]} 0-1

[Event "FRA-ch Universities 2019"]
[Site "Paris"]
[Date "2019.02.02"]
[Round "1.6"]
[White "Eden, James"]
[Black "Bremond, Abel"]
[Result "1-0"]
[ECO "B01"]
[WhiteElo "2338"]
[BlackElo "1836"]
[Annotator "NA RC"]
[PlyCount "79"]
[EventDate "2019.02.01"]
[EventType "swiss"]
[EventCountry "FRA"]
[SourceTitle "playchess.com"]
[Source "ChessBase"]
[SourceQuality "1"]
[TimeControl "900+5"]

1. e4 {[%emt 0:00:00]} d5 {[%emt 0:00:00]} 2. exd5 {[%emt 0:00:04]} Nf6 {[%emt 0:00:00]} 3. Bb5+ {[%emt 0:00:06]} Nbd7 {[%emt 0:00:00]} 4. Nc3 {[%emt 0:00:20]} a6 {[%emt 0:00:01]} 5. Be2 {[%emt 0:00:06]} Nb6 {[%emt 0:00:31]} 6. Nf3 {[%emt 0:00:05]} Nbxd5 {[%emt 0:00:31]} 7. Nxd5 {[%emt 0:00:05]} Qxd5 {[%emt 0:00:21]} 8. O-O {[%emt 0:00:09]} Bg4 {[%emt 0:04:43]} 9. c4 {[%emt 0:00:39]} Qh5 {[%emt 0:00:21]} 10. h3 {[%emt 0:01:14]} e5 {[%emt 0:02:40]} 11. Re1 Bd6 {[%emt 0:02:29]} 12. Nxe5 {[%emt 0:01:36]} Bxe5 {[%emt 0:01:58]} 13. Bxg4 {[%emt 0:00:12]} Nxg4 {[%emt 0:00:06]} 14. Qxg4 {[%emt 0:00:04]} Qxg4 {[%emt 0:00:15]} 15. hxg4 {[%emt 0:00:03]} f6 {[%emt 0:00:06]} 16. d4 {[%emt 0:00:03]} O-O-O {[%emt 0:00:15]} 17. dxe5 {[%emt 0:00:03]} Rhe8 {[%emt 0:00:17]} 18. Bf4 {[%emt 0:00:07]} Rd4 {[%emt 0:00:10]} 19. exf6 {[%emt 0:00:18]} Rxe1+ {[%emt 0:00:14]} 20. Rxe1 {[%emt 0:00:03]} gxf6 {[%emt 0:00:16]} 21. g3 {[%emt 0:00:05]} Rxc4 {[%emt 0:00:04]} 22. Re7 {[%emt 0:00:09]} Rc2 {[%emt 0:00:05]} 23. Rxh7 {[%emt 0:00:04]} Rxb2 {[%emt 0:00:07]} 24. Rxc7+ {[%emt 0:00:04]} Kd8 {[%emt 0:00:00]} 25. a4 {[%emt 0:00:11]} Rb4 {[%emt 0:00:08]} 26. Rf7 {[%emt 0:00:05]} Rxa4 {[%emt 0:00:13]} 27. Rxb7 {[%emt 0:00:03]} Ra1+ {[%emt 0:00:05]} 28. Kg2 {[%emt 0:00:02]} Ke8 {[%emt 0:00:09]} 29. Kf3 {[%emt 0:00:11]} a5 {[%emt 0:00:00]} 30. Ke4 {[%emt 0:00:04]} a4 {[%emt 0:00:02]} 31. Kf5 {[%emt 0:00:05]} a3 {[%emt 0:00:07]} 32. Ra7 {[%emt 0:00:07]} a2 {[%emt 0:00:13]} 33. Be3 {[%emt 0:00:05]} Kd8 {[%emt 0:00:29]} 34. Kxf6 {[%emt 0:00:03]} Ke8 {[%emt 0:00:19]} 35. g5 {[%emt 0:00:02]} Kd8 {[%emt 0:00:30]} 36. g6 {[%emt 0:00:03]} Kc8 {[%emt 0:00:03]} 37. g7 {[%emt 0:00:02]} Rd1 {[%emt 0:00:02]} 38. g8=Q+ {[%emt 0:00:08]} Rd8 {[%emt 0:00:01]} 39. Qc4+ {[%emt 0:00:05]} Kb8 {[%emt 0:00:02]} 40. Qc7# 1-0

[Event "FRA-ch Universities 2019"]
[Site "Paris"]
[Date "2019.02.02"]
[Round "1.9"]
[White "Martin, Florent"]
[Black "Lever, Erwan"]
[Result "0-1"]
[ECO "B22"]
[WhiteElo "1466"]
[BlackElo "2275"]
[Annotator "NA RC"]
[PlyCount "40"]
[EventDate "2019.02.01"]
[EventType "swiss"]
[EventCountry "FRA"]
[SourceTitle "playchess.com"]
[Source "ChessBase"]
[SourceQuality "1"]
[TimeControl "900+5"]

1. e4 {[%emt 0:00:00]} c5 {[%emt 0:00:00]} 2. c3 {[%emt 0:00:00]} Nf6 {[%emt 0:00:05]} 3. d3 {[%emt 0:00:01]} e6 {[%emt 0:00:16]} 4. Nf3 {[%emt 0:00:55]} Nc6 {[%emt 0:00:12]} 5. Nbd2 {[%emt 0:01:55]} d5 {[%emt 0:00:17]} 6. Be2 {[%emt 0:00:48]} Be7 {[%emt 0:00:18]} 7. O-O {[%emt 0:00:03]} O-O {[%emt 0:00:03]} 8. Nb3 {[%emt 0:00:42]} dxe4 {[%emt 0:00:54]} 9. Ng5 {[%emt 0:00:01]} exd3 {[%emt 0:00:11]} 10. Bxd3 {[%emt 0:00:08]} b6 {[%emt 0:00:58]} 11. Qc2 {[%emt 0:00:24]} g6 {[%emt 0:00:42]} 12. Bb5 {[%emt 0:02:37]} Bb7 {[%emt 0:00:07]} 13. Rd1 {[%emt 0:00:38]} Qc7 {[%emt 0:00:03]} 14. Rd3 {[%emt 0:01:04]} c4 {[%emt 0:04:08]} 15. Bxc4 {[%emt 0:01:05]} Ne5 {[%emt 0:00:05]} 16. Nxe6 {[%emt 0:00:03]} Qxc4 {[%emt 0:00:34]} 17. Nf4 {[%emt 0:00:41]} Nxd3 {[%emt 0:00:27]} 18. Nxd3 {[%emt 0:00:02]} Rad8 {[%emt 0:00:09]} 19. Ne5 {[%emt 0:00:48]} Qe4 {[%emt 0:00:07]} 20. Qxe4 {[%emt 0:00:14]} Rd1+ {[%emt 0:00:02]} 0-1

[Event "FRA-ch Universities 2019"]
[Site "Paris"]
[Date "2019.02.02"]
[Round "1.10"]
[White "Budak, Rewi"]
[Black "Zeller, Thomas"]
[Result "1/2-1/2"]
[ECO "C55"]
[WhiteElo "2128"]
[BlackElo "1782"]
[Annotator "NA RC"]
[PlyCount "122"]
[EventDate "2019.02.01"]
[EventType "swiss"]
[EventCountry "FRA"]
[SourceTitle "playchess.com"]
[Source "ChessBase"]
[SourceQuality "1"]
[TimeControl "900+5"]

1. e4 {[%emt 0:00:00]} e5 {[%emt 0:00:00]} 2. Bc4 {[%emt 0:00:00]} Nf6 {[%emt 0:00:00]} 3. d4 {[%emt 0:00:03]} exd4 {[%emt 0:01:17]} 4. Nf3 {[%emt 0:00:01]} Nc6 {[%emt 0:00:15]} 5. Ng5 {[%emt 0:00:02]} Ne5 {[%emt 0:00:40]} 6. Bb3 {[%emt 0:00:01]} h6 {[%emt 0:00:20]} 7. f4 {[%emt 0:00:01]} hxg5 {[%emt 0:00:37]} 8. fxe5 {[%emt 0:00:14]} Nxe4 {[%emt 0:01:46]} 9. Qxd4 {[%emt 0:00:10]} Nc5 {[%emt 0:00:23]} 10. Nc3 {[%emt 0:00:58]} Nxb3 {[%emt 0:00:47]} 11. axb3 {[%emt 0:00:01]} d6 {[%emt 0:00:36]} 12. O-O {[%emt 0:00:53]} dxe5 {[%emt 0:01:37]} 13. Qxe5+ {[%emt 0:00:11]} Be6 {[%emt 0:00:40]} 14. Bxg5 {[%emt 0:00:04]} Qd6 {[%emt 0:00:54]} 15. Bf4 {[%emt 0:03:32]} Qc5+ {[%emt 0:02:29]} 16. Kh1 {[%emt 0:00:03]} O-O-O {[%emt 0:00:17]} 17. Rxa7 {[%emt 0:02:24]} Bd6 {[%emt 0:02:00]} 18. Ra8+ {[%emt 0:02:37]} Kd7 {[%emt 0:00:00]} 19. Qxc5 {[%emt 0:00:29]} Bxc5 {[%emt 0:00:02]} 20. Rd1+ {[%emt 0:00:01]} Ke7 {[%emt 0:00:42]} 21. Raxd8 {[%emt 0:00:14]} Rxd8 {[%emt 0:00:01]} 22. Bxc7 {[%emt 0:00:02]} Rxd1+ {[%emt 0:00:07]} 23. Nxd1 {[%emt 0:00:01]} Bf5 {[%emt 0:00:00]} 24. Nc3 {[%emt 0:02:25]} Bxc2 {[%emt 0:00:01]} 25. b4 {[%emt 0:00:45]} Bd4 {[%emt 0:00:25]} 26. Bf4 {[%emt 0:00:26]} Ke6 {[%emt 0:00:07]} 27. h4 {[%emt 0:00:15]} Bxc3 {[%emt 0:00:01]} 28. bxc3 {[%emt 0:00:00]} b5 {[%emt 0:00:01]} 29. Kg1 {[%emt 0:00:03]} Kd5 {[%emt 0:00:03]} 30. Kf2 {[%emt 0:00:07]} Ke4 {[%emt 0:00:03]} 31. Be3 {[%emt 0:00:04]} f5 {[%emt 0:00:10]} 32. Bd4 {[%emt 0:00:15]} g6 {[%emt 0:00:02]} 33. Kg3 {[%emt 0:00:09]} Bb3 {[%emt 0:00:06]} 34. Bg7 {[%emt 0:00:05]} Bd5 {[%emt 0:00:07]} 35. Kf2 {[%emt 0:00:01]} Kd3 {[%emt 0:00:05]} 36. Kg3 {[%emt 0:00:14]} Ke4 {[%emt 0:00:02]} 37. Bf6 {[%emt 0:00:05]} Bc4 {[%emt 0:00:04]} 38. Kf2 {[%emt 0:00:01]} Bd5 {[%emt 0:00:06]} 39. Kg3 {[%emt 0:00:36]} Bc4 {[%emt 0:00:04]} 40. Be7 {[%emt 0:00:08]} Bd5 {[%emt 0:00:02]} 41. Bd6 {[%emt 0:00:04]} Bc4 {[%emt 0:00:04]} 42. Kh3 {[%emt 0:00:05]} Bd5 {[%emt 0:00:11]} 43. g3 {[%emt 0:00:17]} Kf3 {[%emt 0:00:04]} 44. Bf4 {[%emt 0:00:06]} Bc4 {[%emt 0:00:02]} 45. h5 {[%emt 0:00:09]} gxh5 {[%emt 0:00:19]} 46. Kh4 {[%emt 0:00:01]} Bd3 {[%emt 0:00:12]} 47. Kxh5 {[%emt 0:00:02]} Ke4 {[%emt 0:00:02]} 48. Kg6 {[%emt 0:00:01]} Bc4 {[%emt 0:00:04]} 49. Kf6 {[%emt 0:00:01]} Bd3 {[%emt 0:00:12]} 50. Ke6 {[%emt 0:00:02]} Bc4+ {[%emt 0:00:04]} 51. Kd6 {[%emt 0:00:01]} Kd3 {[%emt 0:00:06]} 52. Ke5 {[%emt 0:00:01]} Kxc3 {[%emt 0:00:07]} 53. Kxf5 {[%emt 0:00:10]} Kxb4 {[%emt 0:00:01]} 54. Be5 {[%emt 0:00:10]} Be2 {[%emt 0:00:04]} 55. Kf4 {[%emt 0:00:11]} Kc4 {[%emt 0:00:05]} 56. Ke3 {[%emt 0:00:02]} Bh5 {[%emt 0:00:02]} 57. Kf4 {[%emt 0:00:02]} b4 {[%emt 0:00:02]} 58. g4 {[%emt 0:00:03]} Bxg4 {[%emt 0:00:01]} 59. Kxg4 {[%emt 0:00:01]} b3 {[%emt 0:00:01]} 60. Kf4 {[%emt 0:00:01]} b2 {[%emt 0:00:01]} 61. Bxb2 Kd5 1/2-1/2

[Event "FRA-ch Universities 2019"]
[Site "Paris"]
[Date "2019.02.02"]
[Round "2"]
[White "Sochacki, Christophe"]
[Black "Ribiere, Damien"]
[Result "1-0"]
[ECO "B08"]
[WhiteElo "2482"]
[BlackElo "2042"]
[Annotator "RC"]
[PlyCount "86"]
[EventDate "2019.02.01"]
[EventType "swiss"]
[EventCountry "FRA"]
[SourceTitle "playchess.com"]
[Source "ChessBase"]
[SourceQuality "1"]
[TimeControl "900+5"]

1. e4 {[%emt 0:00:00]} d6 {[%emt 0:00:00]} 2. d4 {[%emt 0:00:00]} Nf6 {[%emt 0:00:00]} 3. Nc3 {[%emt 0:00:00]} g6 {[%emt 0:00:00]} 4. h3 {[%emt 0:01:12]} Bg7 {[%emt 0:00:21]} 5. Nf3 {[%emt 0:00:04]} O-O {[%emt 0:00:03]} 6. Be3 {[%emt 0:00:13]} c6 {[%emt 0:00:07]} 7. a4 {[%emt 0:00:22]} a5 {[%emt 0:00:11]} 8. Be2 {[%emt 0:00:04]} Nbd7 {[%emt 0:00:25]} 9. Qd2 {[%emt 0:00:03]} e5 {[%emt 0:00:24]} 10. dxe5 {[%emt 0:00:18]} dxe5 {[%emt 0:01:08]} 11. Rd1 {[%emt 0:01:26]} Qe7 {[%emt 0:03:48]} 12. Qd6 {[%emt 0:00:14]} Qxd6 {[%emt 0:00:15]} 13. Rxd6 {[%emt 0:00:03]} Re8 {[%emt 0:00:22]} 14. Rd1 {[%emt 0:00:55]} Nh5 {[%emt 0:01:32]} 15. g3 {[%emt 0:00:59]} Bf8 {[%emt 0:01:31]} 16. Ng5 {[%emt 0:00:42]} h6 {[%emt 0:00:52]} 17. Bxh5 {[%emt 0:00:13]} hxg5 {[%emt 0:00:02]} 18. Bg4 {[%emt 0:00:09]} Nc5 {[%emt 0:01:32]} 19. Bxg5 {[%emt 0:00:26]} Kg7 {[%emt 0:01:11]} 20. Ke2 {[%emt 0:01:44]} f5 {[%emt 0:01:17]} 21. exf5 {[%emt 0:00:23]} Bxf5 {[%emt 0:00:01]} 22. Bxf5 {[%emt 0:03:00]} gxf5 {[%emt 0:00:02]} 23. Be3 {[%emt 0:00:02]} Ne6 {[%emt 0:01:02]} 24. Rd7+ {[%emt 0:00:17]} Kf6 {[%emt 0:00:19]} 25. Kf3 {[%emt 0:00:42]} Re7 {[%emt 0:00:25]} 26. Rxe7 {[%emt 0:00:20]} Bxe7 {[%emt 0:00:01]} 27. h4 {[%emt 0:00:52]} Bc5 {[%emt 0:00:11]} 28. Bxc5 {[%emt 0:00:36]} Nxc5 {[%emt 0:00:00]} 29. Rd1 {[%emt 0:00:02]} Ne6 {[%emt 0:00:08]} 30. Ne2 {[%emt 0:00:38]} b5 {[%emt 0:00:01]} 31. Rd6 {[%emt 0:00:48]} bxa4 {[%emt 0:00:12]} 32. Nc3 {[%emt 0:00:07]} Rc8 {[%emt 0:00:07]} 33. Nxa4 {[%emt 0:00:05]} Ke7 {[%emt 0:00:01]} 34. Rd2 {[%emt 0:00:03]} c5 {[%emt 0:00:11]} 35. Ke3 {[%emt 0:00:13]} Rb8 {[%emt 0:00:06]} 36. Rd5 {[%emt 0:00:09]} Kf6 {[%emt 0:00:06]} 37. b3 {[%emt 0:00:11]} Nd4 {[%emt 0:00:00]} 38. Rxc5 {[%emt 0:00:04]} Ne6 {[%emt 0:00:08]} 39. Rxa5 {[%emt 0:00:04]} Rc8 {[%emt 0:00:03]} 40. c3 {[%emt 0:00:09]} f4+ {[%emt 0:00:07]} 41. Ke4 {[%emt 0:00:05]} fxg3 {[%emt 0:00:06]} 42. fxg3 {[%emt 0:00:01]} Rg8 {[%emt 0:00:00]} 43. Ra6 {[%emt 0:00:16]} Rg4+ {[%emt 0:00:09]} 1-0

[Event "FRA-ch Universities 2019"]
[Site "Paris"]
[Date "2019.02.02"]
[Round "2"]
[White "Sochacki, Wojtek"]
[Black "Bedini, Lucas"]
[Result "1-0"]
[ECO "A56"]
[WhiteElo "2348"]
[BlackElo "1920"]
[Annotator "NA RC"]
[PlyCount "85"]
[EventDate "2019.02.01"]
[EventType "swiss"]
[EventCountry "FRA"]
[SourceTitle "playchess.com"]
[Source "ChessBase"]
[SourceQuality "1"]
[TimeControl "900+5"]

1. d4 {[%emt 0:00:03]} Nf6 {[%emt 0:00:01]} 2. c4 {[%emt 0:00:12]} c5 {[%emt 0:00:03]} 3. Nf3 {[%emt 0:00:08]} cxd4 {[%emt 0:00:23]} 4. Nxd4 {[%emt 0:00:02]} d5 {[%emt 0:00:19]} 5. cxd5 {[%emt 0:00:21]} Nxd5 {[%emt 0:00:06]} 6. e4 {[%emt 0:00:08]} Nc7 {[%emt 0:00:42] D06: Queen's Gambit: Symmetrical and Baltic Defences} (6... Nb4 7. Bb5+ Bd7 8. Bc4 N8c6 9. Nxc6 Nxc6 10. O-O e6 11. Nc3 Be7 12. Bf4 O-O 13. Qd2 Be8 14. Rfd1 Qxd2 15. Rxd2 {½-½ (30) Anand,V (2783)-Vachier Lagrave,M (2791) Saint Louis 2017}) 7. Bc4 {[%emt 0:02:14]} e5 {[%emt 0:01:23]} 8. Qh5 {[%emt 0:03:10]} Bb4+ {[%emt 0:00:59]} 9. Nc3 {[%emt 0:00:03]} O-O {[%emt 0:00:30]} 10. Nf3 {[%emt 0:00:13]} Be6 {[%emt 0:02:40]} ({Predecessor:} 10... Nd7 11. Bg5 Qe8 12. O-O-O Bxc3 13. bxc3 b5 14. Bb3 {½-½ (28) Reti,R-Landau,S Rotterdam 1927}) 11. Ng5 {[%emt 0:01:33]} h6 {[%emt 0:00:45]} 12. Nxe6 {[%emt 0:00:02]} Nxe6 {[%emt 0:00:04]} 13. Bxe6 {[%emt 0:00:20]} Qd4 {[%emt 0:00:49]} 14. O-O {[%emt 0:00:44]} fxe6 {[%emt 0:01:39]} 15. Be3 {[%emt 0:00:06]} Qc4 {[%emt 0:00:16]} 16. Qxe5 {[%emt 0:01:35]} Nc6 {[%emt 0:00:04]} 17. Qb5 {[%emt 0:00:02]} Na5 $1 {[%emt 0:00:24]} 18. Qe5 {[%emt 0:00:35]} Nc6 {[%emt 0:00:14]} 19. Qb5 {[%emt 0:01:52]} Na5 $16 {[%emt 0:00:03]} 20. Qh5 {[%emt 0:00:03]} Rad8 {[%emt 0:01:08]} 21. Rac1 {[%emt 0:00:31]} Nc6 {[%emt 0:00:08]} 22. Qg4 {[%emt 0:01:40]} Ne5 {[%emt 0:00:55]} 23. Qg3 {[%emt 0:00:01]} Nd3 24. Rc2 {[%emt 0:00:03]} Rf7 {[%emt 0:00:36]} 25. h4 {[%emt 0:00:19]} Rfd7 {[%emt 0:00:20]} 26. Bxh6 {[%emt 0:00:24]} Nxb2 {[%emt 0:00:02]} 27. Rxb2 {[%emt 0:00:05]} Bxc3 {[%emt 0:00:03]} 28. Rbb1 {[%emt 0:00:13]} b5 {[%emt 0:00:09]} 29. Bg5 {[%emt 0:00:15]} Rc8 {[%emt 0:00:01]} 30. h5 {[%emt 0:00:08]} Qxe4 {[%emt 0:00:14]} 31. h6 {[%emt 0:00:11]} Rd3 {[%emt 0:00:15]} 32. Qh2 {[%emt 0:00:07]} Qf5 {[%emt 0:00:10]} 33. Be3 {[%emt 0:00:07]} a5 {[%emt 0:00:10]} 34. hxg7 {[%emt 0:00:03]} Bxg7 {[%emt 0:00:03]} 35. Rbc1 {[%emt 0:00:02]} Rdc3 {[%emt 0:00:02]} 36. Rxc3 {[%emt 0:00:02]} Bxc3 {[%emt 0:00:04]} 37. Qg3+ {[%emt 0:00:02]} Bg7 {[%emt 0:00:01]} 38. Rd1 {[%emt 0:00:08]} e5 {[%emt 0:00:20]} 39. Bh6 {[%emt 0:00:06]} Qf6 {[%emt 0:00:09]} 40. Bxg7 {[%emt 0:00:10]} Qxg7 {[%emt 0:00:01]} 41. Qb3+ {[%emt 0:00:01]} Kh8 {[%emt 0:00:30]} 42. Qh3+ {[%emt 0:00:01]} Kg8 {[%emt 0:00:02]} 43. Qxc8+ {[%emt 0:00:02]} 1-0

[Event "FRA-ch Universities 2019"]
[Site "Paris"]
[Date "2019.02.02"]
[Round "2"]
[White "Brethes, Francois"]
[Black "Lambert, Thomas"]
[Result "1-0"]
[ECO "C50"]
[WhiteElo "2267"]
[BlackElo "1993"]
[Annotator "NA RC"]
[PlyCount "39"]
[EventDate "2019.02.01"]
[EventType "swiss"]
[EventCountry "FRA"]
[SourceTitle "playchess.com"]
[Source "ChessBase"]
[SourceQuality "1"]
[TimeControl "900+5"]

1. e4 {[%emt 0:00:00]} e5 {[%emt 0:00:25]} 2. Nf3 {[%emt 0:00:00]} Nc6 {[%emt 0:00:09]} 3. Bc4 {[%emt 0:00:01]} Bc5 {[%emt 0:00:12]} 4. d3 {[%emt 0:00:07]} Nf6 {[%emt 0:00:05]} 5. O-O {[%emt 0:00:03]} O-O {[%emt 0:00:31]} 6. a4 {[%emt 0:00:02]} d6 {[%emt 0:02:28]} 7. c3 {[%emt 0:00:21]} Be6 {[%emt 0:00:15]} 8. Bxe6 {[%emt 0:00:11]} fxe6 {[%emt 0:00:02]} 9. b4 {[%emt 0:00:02]} Nxb4 {[%emt 0:00:31]} 10. cxb4 {[%emt 0:00:04]} Bxb4 {[%emt 0:00:01]} 11. Qb3 {[%emt 0:00:03]} Bc5 {[%emt 0:00:28]} 12. Qxe6+ {[%emt 0:00:03]} Kh8 {[%emt 0:00:00]} 13. Ba3 {[%emt 0:00:23]} Qd7 {[%emt 0:00:13]} 14. Qxd7 {[%emt 0:01:18]} Nxd7 {[%emt 0:00:01]} 15. Nbd2 {[%emt 0:00:07]} h6 {[%emt 0:01:50]} 16. Rfc1 {[%emt 0:00:54]} c6 {[%emt 0:03:31]} 17. Bxc5 {[%emt 0:00:06]} Nxc5 {[%emt 0:00:01]} 18. Nxe5 {[%emt 0:00:23]} dxe5 {[%emt 0:00:56]} 19. Rxc5 {[%emt 0:00:02]} Rad8 {[%emt 0:00:24]} 20. Ra3 {[%emt 0:00:03]} 1-0

[Event "FRA-ch Universities 2019"]
[Site "Paris"]
[Date "2019.02.02"]
[Round "2"]
[White "Toure, Vasanth"]
[Black "Loiseau, Quentin"]
[Result "0-1"]
[ECO "B45"]
[WhiteElo "2064"]
[BlackElo "2452"]
[Annotator "RC"]
[PlyCount "78"]
[EventDate "2019.02.01"]
[EventType "swiss"]
[EventCountry "FRA"]
[SourceTitle "playchess.com"]
[Source "ChessBase"]
[SourceQuality "1"]
[TimeControl "900+5"]

1. e4 {[%emt 0:00:00]} c5 {[%emt 0:00:02]} 2. Nf3 {[%emt 0:00:07]} e6 {[%emt 0:00:03]} 3. d4 {[%emt 0:00:03]} cxd4 {[%emt 0:00:04]} 4. Nxd4 {[%emt 0:00:02]} Nc6 {[%emt 0:00:12]} 5. Nc3 {[%emt 0:00:15]} d6 {[%emt 0:00:20]} 6. Be3 {[%emt 0:00:18]} Nf6 {[%emt 0:00:20]} 7. Be2 {[%emt 0:00:52]} Be7 {[%emt 0:00:02]} 8. f4 {[%emt 0:00:33]} Qc7 {[%emt 0:01:56]} 9. Qd2 {[%emt 0:00:58]} O-O {[%emt 0:00:41]} 10. O-O-O {[%emt 0:01:07]} a6 {[%emt 0:00:30]} 11. g4 {[%emt 0:01:22]} Nd7 {[%emt 0:05:09]} 12. g5 {[%emt 0:02:06]} Nc5 {[%emt 0:01:21]} 13. f5 {[%emt 0:02:30]} Nxd4 {[%emt 0:00:04]} 14. Bxd4 {[%emt 0:00:08]} exf5 {[%emt 0:00:13]} 15. Nd5 {[%emt 0:00:13]} Qd8 {[%emt 0:00:26]} 16. Nxe7+ {[%emt 0:03:11]} Qxe7 {[%emt 0:00:02]} 17. exf5 {[%emt 0:01:35]} Bxf5 {[%emt 0:00:05]} 18. Rde1 {[%emt 0:00:38]} Ne6 {[%emt 0:00:56]} 19. Be3 {[%emt 0:00:11]} Be4 {[%emt 0:00:27]} 20. Rhg1 {[%emt 0:00:03]} Rac8 {[%emt 0:00:21]} 21. Bd3 {[%emt 0:00:04]} d5 {[%emt 0:00:27]} 22. Bxe4 {[%emt 0:00:13]} dxe4 {[%emt 0:00:02]} 23. h4 {[%emt 0:00:11]} Rfd8 {[%emt 0:00:04]} 24. Qa5 {[%emt 0:00:01]} Rc4 {[%emt 0:00:54]} 25. b3 {[%emt 0:00:14]} Rc6 {[%emt 0:00:24]} 26. Rd1 {[%emt 0:00:02]} Rdc8 {[%emt 0:00:02]} 27. Rd2 {[%emt 0:00:05]} b6 {[%emt 0:00:35]} 28. Qd5 {[%emt 0:00:08]} Qc7 {[%emt 0:00:06]} 29. Qxe4 {[%emt 0:00:07]} b5 {[%emt 0:00:28]} 30. Rgg2 {[%emt 0:00:01]} a5 {[%emt 0:00:04]} 31. h5 {[%emt 0:00:03]} a4 {[%emt 0:00:35]} 32. Kb1 {[%emt 0:00:03]} axb3 {[%emt 0:00:04]} 33. axb3 {[%emt 0:00:05]} Ra6 {[%emt 0:00:03]} 34. Bd4 {[%emt 0:00:09]} Rca8 {[%emt 0:00:26]} 35. Bb2 {[%emt 0:00:02]} b4 {[%emt 0:00:02]} 36. g6 {[%emt 0:00:02]} fxg6 {[%emt 0:00:10]} 37. hxg6 {[%emt 0:00:00]} Qa5 {[%emt 0:00:04]} 38. gxh7+ {[%emt 0:00:05]} Kh8 {[%emt 0:00:02]} 39. Rd5 {[%emt 0:00:15]} Qa1+ {[%emt 0:00:02]} 0-1